fUST/lending_fUST_20250120
["ID","MTS","AMOUNT","RATE_DAILY","PERIOD"]
[349590643,1737317440908,-260.846358,0.00023933,7]
[349590644,1737317440918,-2000.93851774,0.00023934,3]
[349590645,1737317440928,-151.0,0.00023968,7]
[349590646,1737317440938,-151.0,0.00023972,7]
[349590647,1737317440947,-1615.91,0.00023972,3]
[349590648,1737317440957,-2265.23,0.00023972,3]
[349590649,1737317440968,-784.17,0.00023972,3]
[349590650,1737317440978,-1402.87,0.00023972,3]
[349590651,1737317440988,-500.0,0.00023972,3]
[349590652,1737317440997,-527.1,0.00023972,3]
[349590653,1737317441007,-159.19847722,0.00023973,2]
[349590654,1737317441018,-160.0,0.00023999,2]
[349590655,1737317441029,-198.39,0.00024003,2]
[349590656,1737317441039,-196.0,0.00024003,2]
[349590657,1737317441048,-2000.93851774,0.00024003,3]
[349590658,1737317441058,-172.31771198,0.00024023,2]
[349590659,1737317441067,-172.64779361,0.00024072,2]
[349590660,1737317441076,-2000.93851774,0.00024072,3]
[349590661,1737317441086,-2000.0,0.000241,2]
[349590662,1737317441096,-153.09,0.000241,31]
[349590663,1737317441106,-153.09,0.000241,31]
[349590664,1737317441115,-153.09,0.000241,31]
[349590665,1737317441125,-153.09,0.000241,31]
[349590666,1737317441134,-153.09,0.000241,31]
[349590667,1737317441144,-153.09,0.000241,31]
[349590668,1737317441153,-153.09,0.000241,31]
[349590669,1737317441162,-182.36133,0.000241,2]
[349590670,1737317441171,-151.0,0.00024108,7]
[349590671,1737317441181,-151.0,0.00024108,7]
[349590672,1737317441190,-1615.91,0.00024109,3]
[349590673,1737317441199,-437.20351838,0.00024109,3]
[349590674,1737317441308,-500.0,0.00021917,3]
[349590676,1737317441338,-2243.58,0.00021917,3]
[349590677,1737317441348,-500.0,0.00021917,3]
[349590678,1737317441357,-181.0,0.00022,2]
[349590679,1737317441367,-327.63632258,0.00022054,3]
[349590680,1737317441377,-2743.58,0.00022054,3]
[349590681,1737317441387,-500.0,0.00022054,3]
[349590682,1737317441400,-2743.58,0.00022191,3]
[349590683,1737317441410,-2743.58,0.00022328,3]
[349590684,1737317441419,-2743.58,0.00022465,3]
[349590685,1737317441429,-500.0,0.00022512,2]
[349590686,1737317441439,-2743.58,0.00022602,3]
[349590687,1737317441448,-2743.58,0.00022739,3]
[349590688,1737317441457,-2743.58,0.00022876,3]
[349590689,1737317441467,-3000.0,0.00023833,2]
[349590690,1737317441477,-1828.02648162,0.00024109,3]
[349590691,1737317441487,-784.17,0.00024109,3]
[349590692,1737317441496,-1402.87,0.00024109,3]
[349590693,1737317441505,-500.0,0.00024109,3]
[349590694,1737317441515,-527.1,0.00024109,3]
[349590695,1737317441524,-151.0,0.00024141,7]
[349590696,1737317441534,-151.0,0.00024141,7]
[349590697,1737317441543,-151.0,0.00024141,7]
[349590698,1737317441552,-310.711884,0.00024141,7]
[349590699,1737317441561,-151.0,0.00024141,7]
[349590700,1737317441571,-310.711884,0.00024141,7]
[349590701,1737317441579,-260.846358,0.00024141,7]
[349590702,1737317441589,-260.846358,0.00024141,7]
[349590703,1737317441598,-151.0,0.00024141,7]
[349590704,1737317441607,-7438.69753278,0.00024141,7]
[349590705,1737317441616,-2000.93851774,0.00024141,3]
[349590706,1737317441625,-151.0,0.0002417,7]
[349590707,1737317441634,-151.0,0.0002417,7]
[349590708,1737317441644,-151.0,0.0002417,7]
[349590709,1737317441653,-151.0,0.0002417,7]
[349590710,1737317441663,-151.0,0.0002417,7]
[349590711,1737317441672,-151.0,0.0002417,7]
[349590712,1737317441683,-151.0,0.0002417,7]
[349590713,1737317441692,-151.0,0.0002417,7]
[349590714,1737317441702,-151.0,0.0002417,7]
[349590715,1737317441711,-151.0,0.0002417,7]
[349590716,1737317441721,-151.0,0.0002417,7]
[349590717,1737317441730,-151.0,0.0002417,7]
[349590718,1737317441739,-151.0,0.0002417,7]
[349590719,1737317441748,-172.492362,0.0002417,7]
[349590720,1737317441758,-151.0,0.0002417,7]
[349590721,1737317441767,-151.0,0.0002417,7]
[349590722,1737317441777,-181.457475,0.0002417,7]
[349590723,1737317441787,-151.0,0.0002417,7]
[349590724,1737317441796,-158.486659,0.0002417,7]
[349590725,1737317441806,-151.0,0.0002417,7]
[349590726,1737317441815,-151.0,0.0002417,7]
[349590727,1737317441827,-151.0,0.0002417,7]
[349590728,1737317441837,-151.0,0.0002417,7]
[349590729,1737317441846,-151.0,0.0002417,7]
[349590730,1737317441856,-151.0,0.0002417,7]
[349590731,1737317441865,-151.0,0.0002417,7]
[349590732,1737317441874,-185.849908,0.0002417,7]
[349590733,1737317441883,-1180.279151,0.0002417,7]
[349590734,1737317441893,-1180.279151,0.0002417,7]
[349590735,1737317441902,-363.251705,0.0002417,7]
[349590736,1737317441911,-363.251705,0.0002417,7]
[349590737,1737317441921,-392.12656,0.0002417,7]
[349590738,1737317441931,-392.12656,0.0002417,7]
[349590739,1737317441940,-507.109625,0.0002417,7]
[349590740,1737317441949,-507.109625,0.0002417,7]
[349590741,1737317441958,-500.0,0.00024171,2]
[349590742,1737317441968,-406.34051665,0.00024171,2]
[349590743,1737317441978,-500.0,0.00024171,2]
[349590744,1737317441987,-500.0,0.00024171,2]
[349590745,1737317441997,-1002.23887962,0.00024171,2]
[349590746,1737317442006,-25835.4170385,0.00024172,5]
[349590747,1737317442015,-3267.66403783,0.00024172,5]
[349590748,1737317442025,-7438.69753278,0.00024172,7]
[349590749,1737317442034,-338186.0044961,0.00024172,61]
[349590750,1737317442047,-328.059,0.00024172,61]
[349590751,1737317442058,-13651.11690832,0.00024172,61]
[349590752,1737317442069,-3180.0,0.00024172,61]
[349590788,1737317443284,-500.0,0.00021917,3]
[349590789,1737317443294,-500.0,0.00021917,3]
[349590790,1737317443303,-501.23718737,0.00021917,3]
[349590791,1737317443313,-500.0,0.00021917,3]
[349590792,1737317443323,-500.0,0.00022054,3]
[349590793,1737317443332,-2743.58,0.00023013,3]
[349590794,1737317443341,-2743.58,0.0002315,3]
[349590795,1737317443351,-2743.58,0.00023287,3]
[349590796,1737317443361,-2743.58,0.00023424,3]
[349590797,1737317443371,-2743.58,0.00023561,3]
[349590798,1737317443381,-2743.58,0.00023698,3]
[349590799,1737317443393,-2743.58,0.00023835,3]
[349590800,1737317443402,-31069.60512455,0.00024172,61]
[349590801,1737317443418,-2743.58,0.00023972,3]
[349590802,1737317443428,-62508.55040145,0.00024172,61]
[349590843,1737317446523,-500.0,0.00021917,3]
[349590845,1737317446532,-40.43944412,0.00021917,3]
[349590991,1737317462157,8343.65892504,0.00023561,120]
[349591059,1737318420757,159.239748,0.00013973,2]
[349591165,1737318636388,-500.0,0.00019115,2]
[349591167,1737318636398,-500.0,0.00019899,2]
[349591169,1737318636408,-2930.03014379,0.000199,2]
[349591171,1737318636417,-300.0,0.00019999,2]
[349591173,1737318636429,-104.18849637,0.0002,3]
[349591175,1737318636440,-596.05,0.0002,3]
[349591188,1737318636556,-305.76150363,0.0002,3]
[349591190,1737318636565,-1003.0,0.0002,3]
[349591192,1737318636575,-1003.0,0.0002,3]
[349591194,1737318636585,-1003.0,0.0002,3]
[349591196,1737318636594,-162.540713,0.00020303,2]
[349591198,1737318636603,-500.0,0.0002035,2]
[349591200,1737318636612,-857.6156152,0.00020362,2]
[349591202,1737318636621,-701.9178886,0.00020366,2]
[349591204,1737318636631,-8679.3707929,0.00020372,2]
[349591206,1737318636640,-1364.4100908,0.00020576,2]
[349591208,1737318636649,-152.0,0.00021075,2]
[349591210,1737318636659,-818.32891864,0.00021461,2]
[349591212,1737318636669,-287.0529592,0.000215,2]
[349591214,1737318636683,-192.0,0.00021549,2]
[349591217,1737318636692,-170.71073,0.00021754,2]
[349591218,1737318636702,-159.95,0.00021777,2]
[349591221,1737318636711,-420.0,0.00021777,2]
[349591223,1737318636720,-591.45068288,0.00021816,2]
[349591224,1737318636729,-492.45290406,0.00021816,2]
[349591225,1737318636737,-492.45290402,0.00021816,2]
[349591226,1737318636746,-492.45290402,0.00021817,2]
[349591227,1737318636755,-492.45290402,0.00021817,2]
[349591228,1737318636764,-3749.89825448,0.00021817,3]
[349591397,1737318638459,-13399.15544295,0.00021817,3]
[349591399,1737318638468,-492.45290402,0.00021817,2]
[349591401,1737318638477,-1937.56212192,0.00021883,2]
[349591403,1737318638486,-186.274,0.00021886,2]
[349591405,1737318638495,-431.60307845,0.0002189,3]
[349591407,1737318638504,-4318.72291428,0.000219,3]
[349591409,1737318638513,-15000.0,0.0002191,2]
[349591411,1737318638522,-505.1176369,0.00021916,2]
[349591413,1737318638531,-500.0,0.00021916,2]
[349591415,1737318638540,-500.0,0.00021916,2]
[349591417,1737318638549,-539.41613241,0.00021916,2]
[349591419,1737318638558,-500.0,0.00021916,2]
[349591421,1737318638567,-500.0,0.00021916,2]
[349591423,1737318638577,-500.0,0.00021916,2]
[349591425,1737318638586,-500.0,0.00021916,2]
[349591427,1737318638595,-500.0,0.00021916,2]
[349591429,1737318638604,-500.0,0.00021916,2]
[349591431,1737318638613,-500.0,0.00021916,2]
[349591433,1737318638622,-500.0,0.00021916,2]
[349591435,1737318638631,-500.0,0.00021916,2]
[349591437,1737318638640,-500.0,0.00021916,2]
[349591439,1737318638650,-500.0,0.00021916,2]
[349591441,1737318638659,-500.0,0.00021916,2]
[349591443,1737318638668,-375.42186372,0.00021916,2]
[349591445,1737318638679,-500.0,0.00021916,2]
[349591447,1737318638688,-500.0,0.00021916,2]
[349591449,1737318638697,-500.0,0.00021916,2]
[349591460,1737318638793,-430.30379803,0.00021916,2]
[349591462,1737318638803,-500.0,0.00021916,2]
[349591465,1737318638817,-500.0,0.00021916,2]
[349591467,1737318638826,-500.0,0.00021916,2]
[349591469,1737318638836,-534.99017355,0.00021916,2]
[349591470,1737318638845,-500.0,0.00021916,2]
[349591473,1737318638855,-500.0,0.00021916,2]
[349591475,1737318638865,-500.0,0.00021916,2]
[349591476,1737318638875,-500.0,0.00021916,2]
[349591478,1737318638885,-500.0,0.00021916,2]
[349591480,1737318638896,-500.0,0.00021916,2]
[349591483,1737318638906,-500.0,0.00021916,2]
[349591485,1737318638915,-500.0,0.00021916,2]
[349591487,1737318638925,-618.89640858,0.00021916,2]
[349591488,1737318638935,-500.0,0.00021916,2]
[349591490,1737318638945,-500.0,0.00021916,2]
[349591493,1737318638955,-500.0,0.00021916,2]
[349591494,1737318638964,-500.0,0.00021916,2]
[349591497,1737318638974,-500.0,0.00021916,2]
[349591498,1737318638985,-500.0,0.00021916,2]
[349591501,1737318638994,-548.00989301,0.00021916,2]
[349591503,1737318639003,-500.0,0.00021916,2]
[349591505,1737318639013,-500.0,0.00021916,2]
[349591507,1737318639023,-500.0,0.00021916,2]
[349591509,1737318639032,-500.0,0.00021916,2]
[349591511,1737318639042,-500.0,0.00021916,2]
[349591513,1737318639051,-500.0,0.00021916,2]
[349591515,1737318639061,-500.0,0.00021916,2]
[349591517,1737318639070,-500.0,0.00021916,2]
[349591519,1737318639080,-500.0,0.00021916,2]
[349591521,1737318639090,-500.0,0.00021916,2]
[349591523,1737318639099,-500.0,0.00021916,2]
[349591525,1737318639108,-500.0,0.00021916,2]
[349591527,1737318639118,-500.0,0.00021916,2]
[349591529,1737318639127,-500.0,0.00021916,2]
[349591531,1737318639137,-500.0,0.00021916,2]
[349591533,1737318639146,-500.0,0.00021916,2]
[349591535,1737318639156,-500.0,0.00021916,2]
[349591537,1737318639166,-500.0,0.00021916,2]
[349591539,1737318639175,-500.0,0.00021916,2]
[349591541,1737318639184,-500.0,0.00021916,2]
[349591543,1737318639193,-500.0,0.00021916,2]
[349591545,1737318639203,-500.0,0.00021916,2]
[349591547,1737318639213,-500.0,0.00021916,2]
[349591549,1737318639222,-500.0,0.00021916,2]
[349591551,1737318639231,-500.0,0.00021916,2]
[349591553,1737318639240,-500.0,0.00021916,2]
[349591555,1737318639249,-500.0,0.00021916,2]
[349591557,1737318639258,-500.0,0.00021916,2]
[349591559,1737318639267,-500.0,0.00021916,2]
[349591561,1737318639276,-500.0,0.00021916,2]
[349591563,1737318639285,-500.0,0.00021916,2]
[349591565,1737318639294,-500.0,0.00021916,2]
[349591567,1737318639303,-500.0,0.00021916,2]
[349591569,1737318639312,-500.0,0.00021916,2]
[349591571,1737318639321,-500.0,0.00021916,2]
[349591573,1737318639330,-500.0,0.00021916,2]
[349591575,1737318639339,-500.0,0.00021916,2]
[349591577,1737318639349,-500.0,0.00021916,2]
[349591579,1737318639358,-500.0,0.00021916,2]
[349591581,1737318639368,-500.0,0.00021916,2]
[349591583,1737318639377,-500.0,0.00021916,2]
[349591585,1737318639388,-500.0,0.00021916,2]
[349591587,1737318639397,-500.0,0.00021916,2]
[349591589,1737318639407,-500.0,0.00021916,2]
[349591591,1737318639416,-500.0,0.00021916,2]
[349591593,1737318639425,-500.0,0.00021916,2]
[349591595,1737318639435,-500.0,0.00021916,2]
[349591597,1737318639445,-500.0,0.00021916,2]
[349591599,1737318639454,-500.0,0.00021916,2]
[349591601,1737318639464,-510.83173712,0.00021916,2]
[349591603,1737318639473,-510.83173712,0.00021916,2]
[349591605,1737318639482,-510.83173712,0.00021916,2]
[349591607,1737318639491,-510.83173712,0.00021916,2]
[349591609,1737318639500,-510.83173712,0.00021916,2]
[349591611,1737318639509,-510.83173712,0.00021916,2]
[349591613,1737318639518,-510.83173712,0.00021916,2]
[349591615,1737318639527,-510.83173712,0.00021916,2]
[349591617,1737318639537,-510.83173712,0.00021916,2]
[349591619,1737318639546,-510.83173712,0.00021916,2]
[349591621,1737318639555,-510.83173712,0.00021916,2]
[349591623,1737318639564,-510.83173712,0.00021916,2]
[349591625,1737318639573,-510.83173712,0.00021916,2]
[349591627,1737318639582,-510.83173712,0.00021916,2]
[349591629,1737318639592,-510.83173712,0.00021916,2]
[349591631,1737318639601,-510.83173712,0.00021916,2]
[349591633,1737318639610,-510.83173712,0.00021916,2]
[349591635,1737318639621,-510.83173712,0.00021916,2]
[349591637,1737318639630,-510.83173712,0.00021916,2]
[349591639,1737318639638,-510.83173712,0.00021916,2]
[349591641,1737318639647,-510.83173712,0.00021916,2]
[349591643,1737318639656,-510.83173712,0.00021916,2]
[349591645,1737318639665,-510.83173712,0.00021916,2]
[349591647,1737318639675,-510.83173712,0.00021916,2]
[349591649,1737318639685,-510.83173712,0.00021916,2]
[349591651,1737318639695,-510.83173712,0.00021916,2]
[349591653,1737318639704,-510.83173712,0.00021916,2]
[349591656,1737318639714,-510.83173712,0.00021916,2]
[349591657,1737318639723,-510.83173712,0.00021916,2]
[349591660,1737318639733,-510.83173712,0.00021916,2]
[349591662,1737318639743,-510.83173712,0.00021916,2]
[349591664,1737318639753,-510.83173712,0.00021916,2]
[349591666,1737318639762,-510.83173712,0.00021916,2]
[349591668,1737318639772,-510.8317372,0.00021916,2]
[349591669,1737318639782,-510.83173719,0.00021916,2]
[349591672,1737318639793,-500.0,0.00021916,7]
[349591674,1737318639806,-501.22063287,0.00021917,3]
[349591676,1737318639820,-499.99237989,0.00021917,2]
[349591678,1737318639830,-500.0,0.00021917,3]
[349591679,1737318639839,-500.0,0.00021917,3]
[349591682,1737318639851,-500.0,0.00021917,3]
[349591684,1737318639860,-500.0,0.00021917,3]
[349591686,1737318639870,-500.0,0.00021917,3]
[349591688,1737318639880,-294.98514241,0.00021917,3]
[349591690,1737318639892,-500.0,0.00021917,3]
[349591692,1737318639901,-500.0,0.00021917,3]
[349591694,1737318639911,-1000.0,0.00021917,3]
[349591696,1737318639921,-500.0,0.00021917,3]
[349591698,1737318639932,-502.56267418,0.00021917,3]
[349591700,1737318639941,-500.0,0.00021917,3]
[349591703,1737318639951,-500.0,0.00021917,3]
[349591705,1737318639960,-500.0,0.00021917,3]
[349591707,1737318639970,-500.0,0.00021917,3]
[349591709,1737318639980,-500.0,0.00021917,3]
[349591711,1737318639990,-500.0,0.00021917,3]
[349591713,1737318640000,-500.0,0.00021917,3]
[349591715,1737318640009,-500.0,0.00021917,3]
[349591717,1737318640019,-500.0,0.00021917,3]
[349591719,1737318640029,-500.0,0.00021917,3]
[349591721,1737318640039,-500.0,0.00021917,3]
[349591723,1737318640050,-172.30352788,0.00021917,3]
[349591725,1737318640059,-500.0,0.00021917,3]
[349591727,1737318640069,-500.0,0.00021917,3]
[349591729,1737318640078,-500.0,0.00021917,3]
[349591731,1737318640087,-500.0,0.00021917,3]
[349591733,1737318640097,-500.0,0.00021917,3]
[349591735,1737318640106,-500.0,0.00021917,3]
[349591737,1737318640116,-500.0,0.00021917,3]
[349591739,1737318640125,-500.0,0.00021917,3]
[349591741,1737318640135,-500.0,0.00021917,3]
[349591743,1737318640144,-500.0,0.00021917,3]
[349591745,1737318640154,-593.86953685,0.00021917,3]
[349591747,1737318640163,-500.0,0.00021917,3]
[349591749,1737318640173,-500.0,0.00021917,3]
[349591751,1737318640183,-500.0,0.00021917,3]
[349591752,1737318640193,-500.0,0.00021917,3]
[349591753,1737318640202,-500.0,0.00021917,3]
[349591754,1737318640212,-500.0,0.00021917,3]
[349591755,1737318640221,-500.0,0.00021917,3]
[349591756,1737318640231,-500.0,0.00021917,3]
[349591758,1737318640315,-500.0,0.00021917,3]
[349591759,1737318640324,-500.0,0.00021917,3]
[349591762,1737318640333,-500.0,0.00021917,3]
[349591764,1737318640343,-500.0,0.00021917,3]
[349591766,1737318640352,-500.0,0.00021917,3]
[349591767,1737318640361,-500.0,0.00021917,3]
[349591769,1737318640370,-500.0,0.00021917,3]
[349591772,1737318640380,-500.0,0.00021917,3]
[349591774,1737318640389,-561.83642069,0.00021917,3]
[349591776,1737318640398,-503.91749604,0.00021917,3]
[349591778,1737318640407,-505.8567295,0.00021917,3]
[349591779,1737318640416,-501.02021842,0.00021917,14]
[349591781,1737318640426,-500.0,0.00021917,3]
[349591783,1737318640436,-500.0,0.00021917,3]
[349591785,1737318640446,-500.66176876,0.00021917,3]
[349591787,1737318640455,-500.0,0.00021917,3]
[349591790,1737318640469,-500.0,0.00021917,3]
[349591792,1737318640478,-597.17245691,0.00021917,3]
[349591793,1737318640487,-505.2428438,0.00021917,3]
[349591795,1737318640497,-500.0,0.00021917,3]
[349591798,1737318640507,-500.0,0.00021917,3]
[349591800,1737318640516,-500.0,0.00021917,3]
[349591802,1737318640525,-500.0,0.00021917,3]
[349591803,1737318640535,-500.0,0.00021917,3]
[349591806,1737318640544,-500.0,0.00021917,3]
[349591808,1737318640554,-500.0,0.00021917,3]
[349591810,1737318640564,-500.0,0.00021917,3]
[349591812,1737318640573,-500.0,0.00021917,3]
[349591814,1737318640583,-500.0,0.00021917,3]
[349591816,1737318640592,-500.0,0.00021917,3]
[349591818,1737318640602,-500.0,0.00021917,3]
[349591820,1737318640612,-500.0,0.00021917,3]
[349591822,1737318640621,-500.0,0.00021917,3]
[349591824,1737318640631,-500.0,0.00021917,3]
[349591826,1737318640640,-500.0,0.00021917,3]
[349591828,1737318640649,-500.0,0.00021917,3]
[349591830,1737318640658,-229.90103744,0.00021917,3]
[349591832,1737318640668,-312.22990131,0.00021917,3]
[349591834,1737318640678,-500.0,0.00021917,3]
[349591836,1737318640688,-500.0,0.00021917,3]
[349591838,1737318640697,-500.0,0.00021917,3]
[349591840,1737318640706,-500.0,0.00021917,3]
[349591842,1737318640715,-200.0,0.00021917,3]
[349591844,1737318640724,-500.0,0.00021917,3]
[349591846,1737318640734,-500.0,0.00021917,3]
[349591848,1737318640743,-500.0,0.00021917,3]
[349591850,1737318640753,-500.0,0.00021917,3]
[349591852,1737318640762,-500.0,0.00021917,3]
[349591854,1737318640771,-500.0,0.00021917,3]
[349591856,1737318640781,-500.0,0.00021917,3]
[349591858,1737318640790,-500.0,0.00021917,3]
[349591860,1737318640800,-201.29602093,0.00021917,2]
[349591862,1737318640811,-333.39602905,0.00021917,3]
[349591864,1737318640821,-500.0,0.00021917,3]
[349591866,1737318640832,-500.0,0.00021917,3]
[349591868,1737318640842,-500.0,0.00021917,3]
[349591870,1737318640851,-500.0,0.00021917,3]
[349591872,1737318640861,-500.0,0.00021917,3]
[349591874,1737318640873,-500.0,0.00021917,3]
[349591876,1737318640883,-367.84836339,0.00021917,3]
[349591878,1737318640893,-501.64908464,0.00021917,3]
[349591880,1737318640902,-500.0,0.00021917,3]
[349591882,1737318640913,-455.43224117,0.00021917,3]
[349591884,1737318640922,-500.0,0.00021917,3]
[349591886,1737318640933,-500.0,0.00021917,3]
[349591888,1737318640942,-500.0,0.00021917,3]
[349591890,1737318640952,-500.0,0.00021917,3]
[349591892,1737318640963,-500.43789982,0.00021917,3]
[349591894,1737318640974,-500.0,0.00021917,3]
[349591896,1737318640983,-500.0,0.00021917,3]
[349591898,1737318640994,-500.0,0.00021917,3]
[349591900,1737318641004,-500.0,0.00021917,3]
[349591903,1737318641014,-500.36756275,0.00021917,3]
[349591905,1737318641024,-500.0,0.00021917,3]
[349591907,1737318641034,-500.0,0.00021917,3]
[349591909,1737318641043,-500.0,0.00021917,3]
[349591911,1737318641052,-500.0,0.00021917,3]
[349591913,1737318641061,-500.0,0.00021917,3]
[349591915,1737318641071,-500.0,0.00021917,3]
[349591917,1737318641081,-500.0,0.00021917,3]
[349591919,1737318641091,-500.91331259,0.00021917,3]
[349591921,1737318641101,-500.0,0.00021917,3]
[349591923,1737318641111,-500.0,0.00021917,3]
[349591925,1737318641121,-500.0,0.00021917,3]
[349591927,1737318641131,-500.0,0.00021917,3]
[349591929,1737318641140,-500.0,0.00021917,3]
[349591931,1737318641150,-500.0,0.00021917,3]
[349591933,1737318641160,-517.34636823,0.00021917,3]
[349591935,1737318641170,-500.0,0.00021917,3]
[349591936,1737318641182,-500.0,0.00021917,3]
[349591939,1737318641193,-500.0,0.00021917,3]
[349591941,1737318641203,-500.0,0.00021917,3]
[349591943,1737318641215,-534.98085898,0.00021917,3]
[349591945,1737318641224,-500.0,0.00021917,3]
[349591947,1737318641233,-500.0,0.00021917,3]
[349591949,1737318641244,-500.0,0.00021917,3]
[349591951,1737318641254,-500.0,0.00021917,3]
[349591953,1737318641264,-500.0,0.00021917,3]
[349591955,1737318641274,-500.0,0.00021917,3]
[349591957,1737318641283,-500.0,0.00021917,3]
[349591959,1737318641293,-500.0,0.00021917,3]
[349591961,1737318641302,-500.0,0.00021917,3]
[349591963,1737318641312,-500.0,0.00021917,3]
[349591965,1737318641321,-500.0,0.00021917,3]
[349591967,1737318641331,-500.0,0.00021917,3]
[349591969,1737318641340,-500.0,0.00021917,3]
[349591971,1737318641349,-500.0,0.00021917,3]
[349591973,1737318641358,-500.0,0.00021917,3]
[349591975,1737318641368,-500.0,0.00021917,3]
[349591977,1737318641377,-500.0,0.00021917,3]
[349591979,1737318641387,-500.0,0.00021917,3]
[349591981,1737318641395,-253.03024554,0.00021917,2]
[349591983,1737318641405,-500.0,0.00021917,3]
[349591985,1737318641413,-500.0,0.00021917,3]
[349591987,1737318641423,-500.0,0.00021917,3]
[349591989,1737318641436,-500.0,0.00021917,3]
[349591991,1737318641445,-500.0,0.00021917,3]
[349591993,1737318641455,-500.0,0.00021917,3]
[349591995,1737318641464,-500.0,0.00021917,3]
[349591997,1737318641474,-353.74800741,0.00021917,3]
[349591999,1737318641484,-639.32927632,0.00021917,3]
[349592001,1737318641493,-500.0,0.00021917,3]
[349592003,1737318641503,-500.0,0.00021917,3]
[349592005,1737318641514,-500.0,0.00021917,3]
[349592007,1737318641523,-500.0,0.00021917,3]
[349592009,1737318641533,-500.0,0.00021917,3]
[349592011,1737318641542,-500.0,0.00021917,3]
[349592013,1737318641552,-500.0,0.00021917,3]
[349592015,1737318641561,-500.0,0.00021917,3]
[349592017,1737318641571,-500.0,0.00021917,3]
[349592019,1737318641581,-500.0,0.00021917,3]
[349592021,1737318641590,-500.0,0.00021917,3]
[349592023,1737318641601,-500.0,0.00021917,3]
[349592025,1737318641611,-500.0,0.00021917,3]
[349592027,1737318641622,-500.0,0.00021917,3]
[349592029,1737318641632,-500.0,0.00021917,3]
[349592031,1737318641643,-500.0,0.00021917,3]
[349592033,1737318641653,-500.0,0.00021917,3]
[349592043,1737318641739,-500.0,0.00021917,3]
[349592045,1737318641749,-509.62807181,0.00021917,3]
[349592047,1737318641759,-503.23886037,0.00021917,3]
[349592049,1737318641769,-368.92635215,0.00021917,3]
[349592051,1737318641778,-500.0,0.00021917,3]
[349592053,1737318641788,-500.0,0.00021917,3]
[349592055,1737318641797,-500.0,0.00021917,3]
[349592057,1737318641809,-500.0,0.00021917,3]
[349592059,1737318641822,-500.0,0.00021917,3]
[349592061,1737318641832,-500.0,0.00021917,3]
[349592063,1737318641842,-500.0,0.00021917,3]
[349592065,1737318641852,-500.0,0.00021917,3]
[349592067,1737318641862,-500.0,0.00021917,3]
[349592069,1737318641872,-500.0,0.00021917,3]
[349592071,1737318641882,-500.0,0.00021917,3]
[349592073,1737318641891,-500.0,0.00021917,3]
[349592075,1737318641901,-500.0,0.00021917,3]
[349592077,1737318641912,-500.0,0.00021917,3]
[349592079,1737318641922,-500.0,0.00021917,3]
[349592081,1737318641931,-359.11847634,0.00021917,3]
[349592083,1737318641941,-500.0,0.00021917,3]
[349592085,1737318641951,-500.8198669,0.00021917,3]
[349592087,1737318641960,-500.0,0.00021917,3]
[349592089,1737318641970,-500.0,0.00021917,3]
[349592091,1737318641980,-500.0,0.00021917,3]
[349592093,1737318641989,-500.0,0.00021917,3]
[349592095,1737318641999,-500.0,0.00021917,3]
[349592097,1737318642008,-500.0,0.00021917,3]